Cogmind - Beta 10 @@@ ROGUE MODE // 2020.09.20 @ 12:54:54 Player: Palikka Result: Destroyed by G-34 Mercenary with Small Laser Performance ------------- Evolutions (1) 500 Regions Visited (2) 400 Robots Destroyed (10) 50 Value Destroyed (176) 176 Prototype IDs (0) 0 Alien Tech Used (0) 0 Bonus (0) 0 TOTAL SCORE: 1126 Bonus ------- None Cogmind --------- Core Integrity 0/400 Matter 162/300 Energy 88/100 System Corruption 0% Temperature Cool (8) Movement Flying (37) Location -9/Materials Parts ------- > --- POWER (1) -------- (None) > --- PROPULSION (3) --- Flight Unit VTOL Module > --- UTILITY (3) ------ Signal Interpreter > --- WEAPON (2) ------- (None) > --- INVENTORY (4) ---- Flight Unit Flight Unit Small Storage Unit Improved Light Cannon Peak State ------------ > --- POWER ------------ Light Nuclear Core > --- PROPULSION ------- VTOL Module VTOL Module VTOL Module > --- UTILITY ---------- Signal Interpreter Targeting Computer > --- WEAPON ----------- Light Assault Rifle > --- INVENTORY -------- VTOL Module Small Storage Unit [Rating: 12] Favorites ----------- Power Light Ion Engine Engine Light Ion Engine Power Core Light Nuclear Core Propulsion VTOL Module Flight Unit VTOL Module Utility Signal Interpreter Processor Signal Interpreter Weapon Assault Rifle Ballistic Gun Assault Rifle Build | -11 -10 -9 ------- Run | Scr Mat Mat Slots Evolved 2 | . . 2 Power . | . . . Propulsion 1 | . . 1 Utility 1 | . . 1 Weapon . | . . . Parts Attached 17 | 1 8 8 Power 3 | . 1 2 Engine 2 | . 1 1 Core 1 | . . 1 Reactor . | . . . Propulsion 9 | . 4 5 Treads . | . . . Leg . | . . . Wheel . | . . . Hover . | . . . Flight 9 | . 4 5 Utility 2 | . 2 . Device . | . . . Storage . | . . . Processor 2 | . 2 . Hackware . | . . . Protection . | . . . Artifact . | . . . Weapon 3 | 1 1 1 Energy Gun . | . . . Energy Cannon . | . . . Ballistic Gun 3 | 1 1 1 Ballistic Cannon . | . . . Launcher . | . . . Special Weapon . | . . . Impact Weapon . | . . . Slashing Weapon . | . . . Piercing Weapon . | . . . Special Melee Weapon . | . . . Unidentified Prototypes . | . . . Parts Lost 9 | . . 9 Power 2 | . . 2 Propulsion 4 | . . 4 Utility 1 | . . 1 Weapon 2 | . . 2 Highest Loss Streak 9 | . . 9 Average Slot Usage (%) 43 | . 48 37 Engine 4 | . 5 2 Core 1 | . . 3 Flight 13 | . 14 12 Processor 13 | . 14 12 Ballistic Gun 10 | . 14 7 Naked Turns . | . . . Heaviest Build 6 | 2 5 6 Greatest Support 15 | 3 10 15 Greatest Overweight (x) 1 | . . 1 Average Overweight (x) . | . . . Largest Inventory Capacity 4 | 4 4 4 Average Capacity 4 | 4 4 4 Most Carried 4 | 4 4 4 Average Carried 3 | 2 3 2 Final Capacity 4 | 4 4 4 Final Carried 4 | 4 4 4 Class Distribution -------------------- 100% | Mutant Dominant Class ---------------- Mutant | -10/Materials Mutant | -9/Materials Resources | -11 -10 -9 ----------- Run | Scr Mat Mat Matter Collected 274 | 161 97 16 Remotely . | . . . Salvage Created 244 | . 136 108 Parts 27 | . 13 14 Haulers Intercepted . | . . . Recyclers Shooed 1 | . 1 . Parts Field Recycled . | . . . Retrieved Matter . | . . . Parts Self-Destructed . | . . . Prevented . | . . . Kills | -11 -10 -9 ------- Run | Scr Mat Mat Combat Hostiles Destroyed 9 | . 5 4 Guns 9 | . 5 4 Classes Destroyed 3 | . 2 1 Worker 1 | . . 1 Swarmer 6 | . 3 3 Grunt 3 | . 2 1 Best Kill Streak 5 | . 5 5 Combat Bots Only 5 | . 5 4 Max Kills in Single Turn 1 | . 1 1 Gunslinging . | . . . Exploded . | . . . Melee . | . . . Uniques/NPCs Destroyed . | . . . Combat | -11 -10 -9 -------- Run | Scr Mat Mat Damage Taken 1007 | . 162 845 Core 480 | . 70 410 Absorbed by Shields . | . . . Core Remaining (%) 86 | 100 72 . Volleys Fired 39 | . 11 28 Largest 1 | . 1 1 Hottest 23 | . 20 23 Shots Fired 39 | . 11 28 Gun 39 | . 11 28 Cannon . | . . . Launcher . | . . . Special . | . . . Kinetic 39 | . 11 28 Thermal . | . . . Explosive . | . . . Electromagnetic . | . . . Robot Hit Streak 7 | . 6 7 Robot Miss Streak 3 | . 3 3 Penetration Max . | . . . Secondary Targets . | . . . Shots Hit Robots 25 | . 7 18 Core Hits 16 | . 9 7 Critical Hits . | . . . Critical Kills . | . . . Critical Parts Destroyed . | . . . Melee Attacks . | . . . Impact . | . . . Slashing . | . . . Piercing . | . . . Sneak Attacks . | . . . Combat Hostiles . | . . . Follow-up Attacks . | . . . Damage Inflicted 366 | . 127 239 Guns 364 | . 125 239 Cannons . | . . . Explosions . | . . . Melee . | . . . Ramming 2 | . 2 . Kinetic 364 | . 125 239 Thermal . | . . . Explosive . | . . . Electromagnetic . | . . . Impact . | . . . Slashing . | . . . Piercing . | . . . Highest Corruption . | . . . Average Corruption . | . . . Corruption Purged . | . . . Overload Shots . | . . . Overflow Damage . | . . . Projectiles . | . . . Explosions . | . . . Melee . | . . . Knockbacks . | . . . Impact . | . . . Kinetic . | . . . Secondary . | . . . Self-Inflicted Damage 1 | . 1 . Shots . | . . . Rammed 1 | . 1 . Targets Rammed 1 | . 1 . Kicked . | . . . Crushed . | . . . Highest Temperature 7 | . . 7 Average Temperature 4 | . . 4 Received Heat Transfer 240 | . 54 186 Siege Activations . | . . . Robots Corrupted . | . . . Combat Hostiles . | . . . Parts Fried . | . . . Impact Corruptions . | . . . Robots Melted . | . . . Combat Hostiles . | . . . Parts Melted . | . . . Heat Transferred . | . . . Parts Sabotaged . | . . . Parts Stolen . | . . . Parts Stripped . | . . . Power Chain Reactions . | . . . Missiles Intercepted . | . . . Alert | -11 -10 -9 ------- Run | Scr Mat Mat Peak Influence 150 | . 150 88 Initial 63 | . . 63 Average 66 | . 84 63 Maximum Alert Level . | . . . Low Security (%) 100 | 100 100 100 Level 1 . | . . . Level 2 . | . . . Level 3 . | . . . Level 4 . | . . . Level 5 . | . . . High Security . | . . . Max Security . | . . . Squads Dispatched 3 | . 3 . Investigation 1 | . 1 . Extermination . | . . . Reinforcement 2 | . 2 . Assault . | . . . Garrison . | . . . Intercept . | . . . Construction Impeded . | . . . Haulers Reinforced . | . . . Stealth | -11 -10 -9 --------- Run | Scr Mat Mat Distress Signals . | . . . Communications Jammed . | . . . Distress Signals . | . . . Times Spotted 25 | . 11 14 Peak Tracking Total 11 | . 5 11 Tactical Retreats 1 | . . 1 Traps | -11 -10 -9 ------- Run | Scr Mat Mat Traps Triggered 1 | . 1 . Indirectly . | . . . Trap Hack Attempts . | . . . Triggered . | . . . Disarmed . | . . . Reprogrammed . | . . . Reused . | . . . Traps Extracted . | . . . Installed . | . . . Triggered . | . . . Machines | -11 -10 -9 ---------- Run | Scr Mat Mat Machines Disabled . | . . . Max in Single Turn . | . . . Machines Sabotaged . | . . . Garrisons Compromised . | . . . Overloaded Fab Kills . | . . . Fab Network Shutdowns . | . . . Hacking | -11 -10 -9 --------- Run | Scr Mat Mat Machines Accessed . | . . . Terminals . | . . . Fabricators . | . . . Repair Stations . | . . . Recycling Units . | . . . Scanalyzers . | . . . Garrison Access . | . . . Total Hacks . | . . . Successful . | . . . Failed . | . . . Catastrophic . | . . . Database Lockouts . | . . . Manual . | . . . Terminals . | . . . Fabricators . | . . . Repair Stations . | . . . Recycling Units . | . . . Scanalyzers . | . . . Garrison Access . | . . . Terminal Hacks . | . . . Fabricator Hacks . | . . . Repair Station Hacks . | . . . Recycling Unit Hacks . | . . . Scanalyzer . | . . . Garrison Access Hacks . | . . . Unauthorized Hacks . | . . . Terminals . | . . . Fabricators . | . . . Repair Stations . | . . . Recycling Units . | . . . Scanalyzers . | . . . Garrison Access . | . . . Data Cores Recovered . | . . . Used . | . . . Hacking Detections . | . . . Full Trace Events . | . . . Feedback Events . | . . . Feedback Blocked . | . . . Robot Schematics Acquired . | . . . Robots Built . | . . . Matter . | . . . Time . | . . . Total Robot Build Rating . | . . . Part Schematics Acquired . | . . . Parts Built . | . . . Matter . | . . . Time . | . . . Total Part Build Rating . | . . . Parts Repaired . | . . . Time . | . . . Parts Recycled . | . . . Recycled Matter . | . . . Retrieved Matter . | . . . Retrieved Components . | . . . Parts Scanalyzed . | . . . Part Schematics Acquired . | . . . Parts Damaged . | . . . Bothacking | -11 -10 -9 ------------ Run | Scr Mat Mat Used RIF Installer . | . . . Robots Hacked . | . . . Non-combat . | . . . Combat . | . . . Robot Hacks Applied . | . . . Relay Couplers Released . | . . . Robots Rewired . | . . . Allies Hacked . | . . . Hacks Repelled . | . . . Allies | -11 -10 -9 -------- Run | Scr Mat Mat Total Allies . | . . . Largest Group . | . . . Highest-Rated Group . | . . . Highest-Rated Ally . | . . . Total Orders . | . . . Ally Attacks . | . . . Total Damage . | . . . Kills . | . . . Allies Corrupted . | . . . Allies Melted . | . . . Intel | -11 -10 -9 ------- Run | Scr Mat Mat Robot Analysis Total . | . . . Derelict Logs Recovered . | . . . Drone Launches . | . . . Drone Recoveries . | . . . Exploration | -11 -10 -9 ------------- Run | Scr Mat Mat Turns Passed 218 | 22 97 99 Spaces Moved 247 | 32 131 84 Core 84 | 32 51 1 Treads . | . . . Legs . | . . . Wheels . | . . . Hover . | . . . Flight 163 | . 80 83 Fastest Speed 34 | 50 37 34 Average Speed 41 | 50 42 37 Slowest Speed 100 | 50 50 100 Overloaded Moves . | . . . Propulsion Burnouts . | . . . Robots Hopped 5 | . 3 2 Cave-ins Triggered . | . . . Exploration Rate (%) 19 | 2 41 14 Regions Visited 2 Branch Regions . Pre-discovered Areas . | . . . Known Exits Taken 1 | . 1 . Unknown Exits Taken 1 | 1 . . Scrap Searched . | . . . Spaces Dug . | . . . Terrain Destroyed . | . . . Melee . | . . . Projectile . | . . . AOE . | . . . Terrain Rammed . | . . . Walls Destroyed . | . . . Machines Disabled . | . . . Actions | -11 -10 -9 --------- Run | Scr Mat Mat Total 319 | 36 161 122 Wait 3 | . 2 1 Move 236 | 31 125 80 Hop 5 | . 3 2 Pick Up 11 | 4 5 2 Fast Attach 10 | 1 5 4 Attach 4 | . 1 3 Detach . | . . . Swap 3 | . 2 1 Drop 8 | . 7 1 Fire 39 | . 11 28 Melee . | . . . Ram . | . . . Kick . | . . . Crush . | . . . Escape Stasis . | . . . Rewire . | . . . Trap . | . . . Miscellaneous . | . . . Route ------- -11/Scrapyard -10/Materials -9/Materials History --------- Turn | Location | Event 10 | -11/Scrapyard | Discovered new exit (range 15) 23 | -11/Scrapyard | Entered Materials 109 | -10/Materials | Discovered new exit (range 12) 118 | -10/Materials | Identified exit to Materials 120 | -10/Materials | Entered another Materials area 120 | -9/Materials | Evolved 2 slots: Propulsion x1, Utility x1 164 | -9/Materials | Core integrity fell below 50% 179 | -9/Materials | Core integrity fell below 20% 219 | -9/Materials | Destroyed by G-34 Mercenary with Small Laser Last Messages --------------- 00153_ VTOL Module destroyed. 00155_ Lgt. Nuclear Core destroyed. 00155_ Acquired Hvy. Assault Rifle. 00155_ K-01 Serf collects debris. 00156_ S-10 Pest destroyed. 00158_ K-01 Serf collects debris. 00158_ K-01 Serf destroyed. 00170_ S-10 Pest destroyed. 00172_ G-34 Mercenary destroyed. 00185_ Hvy. Assault Rifle destroyed. 00189_ Acquired Flight Unit. 00190_ Acquired 16 matter. 00191_ Acquired Lgt. Ion Engine. 00193_ Acquired Flight Unit. 00194_ R-06 Scavenger collects Aluminum Leg. 00197_ Acquired Flight Unit. 00199_ Flight Unit destroyed. 00199_ R-06 Scavenger collects Lgt. Ion Engine. 00201_ Acquired Imp. Light Cannon. 00218_ Lgt. Ion Engine destroyed. Map ----- +----------------------------------------------------+ | ??????????????????????????????????????? ???????? | | ??????????????????????????????????????? #??????? | | ??????????????????????????????????????# #??????? | | ??????????????????????????????????????+ #??????? | | ??????????????????????????????????????# #??????? | | ??????????????????????????????????????# #??????? | | ??????????????????????????????????????# #??????? | | ??????????????????????????????????????# #??????? | | ?????????????????????????##???????????# #??????? | | ????????????????????????? ???????????# #??????? | | ????????????????????????? ????####### +??????? | | ???????????????????????"""k"???? # #??????? | | ????????????????????????"" ""??? # #??????? | | ?????????????????????#??"" "?????""" # #??????? | | ?????????????????????# ? ?????""" # #??##### | | ?????????????????????? ??????"" ?# #? | | ???????????????????????? ?????? ?# #? [ | | ????????????????????????##s########+### # | | ????????????????######### s # | | ?????????????? r + | | ??????????????????#######g # """ "" | | ????????????????????????# ############# # """ "" | | ????????????????????????# #???????????# #?""" "? | | ????????????????????????# #???????????# #?#####? | | ????????????????????????# +???????????# #??????? | | ????????????????????????#@ #???????????# #??????? | | ????????????????????????# +???????????# #??????? | | ????????????????????????# #???????????# #??????? | | ????????????????????????# #????????#### ######## | | ????????????????????????# #????????+ | | ????????????????????????# w #????????#### ######## | | ????????????????????????# #???????????# #??????? | | ???????????????????????? #???????????# #??????? | | ???????????????????????? #???????????# #??????? | | ???????????????????????? #???????????# #??????? | | ????????????????????????#####???????????# #??????? | | ???????????????????????????????????????##/######## | | ???????????????????????????????????????# # | | ???????????????????????????????????????# + | | ???????????????????????????????????????# # | | ???????????????????????????????????????# # | | ???????????????????????????????????????# # | | ???????????????????????????????????????# # | | ???????????????????????????????????????# # | | ???????????????????????????????????????# # | | ???????????????????????????????????????#+###/##### | | ???????????????????????????????????????# #??? | | ???????????????????????????????????????# #??? | | ???????????????????????????????????????# #### | | ??????????????????????????????????????## ##T# | +----------------------------------------------------+ Best States ------------- Heat Dissipation 28 Energy Generation 14 Energy Capacity 160 Matter Stores 300 Matter Capacity 300 Sight Range 16 Terrain Scan Density 10 Evasion (%) 62 Targeting Accuracy 5 Item Schematics ----------------- None Robot Schematics ------------------ None Fabricated ------------ Nothing Alien Tech Used ----------------- None Achievements -------------- None Challenges ------------ None Game ------ Seed IonThiefInterpreter Manual? 0 Play Time 00:05:32 Cumulative 270.6 hours Start 2020.09.20 @ 12:51:11 End 2020.09.20 @ 12:54:54 Sessions 1 Manual Loads 0 Difficulty Rogue Special Mode None Game No. 385 Rogue 385 Adventurer 0 Explorer 0 Win Type - Total 30 Types 21/0/6/3/0/0/0/0/0 Lore% 85 Gallery% 80 Achievement% 48 Wizard Run 0 Options --------- ASCII 0 Keyboard 1 Movement Numpad Keybinds 0 Fullscreen 1 Font 24/Smallcaps Map View 76x50 Tactical HUD 1 Map Filters NONE Filters NONE Steam 1 RUN: c1aa20e9-e12f-4808-9aeb-27f5da76aecd